[Event "40th Cappelle Open 2024"]
[Site "Cappelle-la-Grande"]
[Date "2024.03.06"]
[Round "7.13"]
[White "Bujisho, Benjamin"]
[Black "Degraeve, Jean-Marc"]
[Result "0-1"]
[ECO "B03"]
[WhiteElo "2339"]
[BlackElo "2455"]
[Annotator "TA"]
[PlyCount "74"]
[EventDate "2024.03.02"]
[EventType "swiss"]
[EventCountry "FRA"]
[SourceTitle "playchess.com"]
[Source "ChessBase"]
[SourceQuality "1"]
[TimeControl "40/5400+30:1800+30"]

{[%evp 15,74,41,38,22,24,0,0,2,0,0,2,-5,-8,-2,16,14,0,-77,-20,-20,-21,-28,-25,-11,28,-83,-68,-73,-67,-161,-169,-158,-154,-233,-218,-322,-281,-298,-262,-230,-123,-128,-112,-131,-122,-436,-116,-170,-63,-57,-55,-87,-77,-258,-253,-791,-783,-2466,-2156,-29960,-2027]} 1. e4 {[%emt 0:02:16][%cal Be2e4,Be4e5][%mdl 32]} Nf6 {[%emt 0:00:07]} 2. e5 {[%emt 0:01:39]} Nd5 {[%emt 0:00:07]} 3. c4 {[%emt 0:02:12]} Nb6 {[%emt 0:00:20]} 4. d4 {[%emt 0:00:19]} d6 {[%emt 0:00:05]} 5. exd6 {[%emt 0:00:25]} exd6 {[%emt 0:00:12]} 6. Nc3 {[%emt 0:04:52]} Nc6 {[%emt 0:00:46]} 7. Be3 {[%emt 0:06:18]} Be7 {[%emt 0:00:21]} 8. Bd3 {[%emt 0:01:53]} O-O {[%emt 0:00:29]} 9. Nge2 {[%emt 0:00:53]} Nb4 {[%emt 0:00:40]} 10. O-O {[%emt 0:03:52]} c6 {[%emt 0:15:44]} 11. b3 {[%emt 0:02:29] The position is equal.} Nxd3 {[%emt 0:00:12]} 12. Qxd3 {[%emt 0:00:06]} d5 {[%emt 0:00:19]} 13. c5 {[%emt 0:01:04]} Nd7 {[%emt 0:02:51]} 14. Ng3 {[%emt 0:00:01]} g6 {[%emt 0:21:43] Prevents Nf5} 15. Bh6 {[%emt 0:10:22]} Re8 {[%emt 0:00:04]} 16. f4 {[%emt 0:02:28]} (16. Nf5 $11) 16... Bf8 {[%emt 0:05:03]} (16... b6 $17 17. cxb6 axb6) 17. Bxf8 $11 {[%emt 0:03:42]} Nxf8 {[%emt 0:00:02]} 18. f5 {[%emt 0:02:42]} Qg5 {[%emt 0:01:33] Repels Qd2} 19. Rf3 {[%emt 0:01:52]} gxf5 {[%emt 0:02:49]} 20. h4 {[%emt 0:51:05]} (20. Nxf5 Bxf5 21. Rxf5 Qe3+ 22. Qxe3 Rxe3 $11) (20. Nce2 $11) 20... Qxh4 $17 {[%emt 0:01:43] Strongly threatening ...f4.} 21. Raf1 {[%emt 0:03:04]} Ng6 {[%emt 0:01:11] White must now prevent ...f4.} 22. Nge2 {[%emt 0:11:35] [#]} ({White should play} 22. Nce2 $15) 22... f4 $1 {[%emt 0:11:24]} 23. Nxf4 {[%emt 0:00:16]} Bg4 {[%emt 0:01:14]} 24. Nxg6 {[%emt 0:20:22]} (24. Re3 $17 {keeps fighting.}) 24... hxg6 $19 {[%emt 0:02:51]} 25. Rf4 {[%emt 0:06:37]} (25. Rxf7 $142 Bf5 26. R7xf5 gxf5 27. Ne2) 25... f5 {[%emt 0:02:24]} 26. Nd1 {[%emt 0:00:34]} Qe7 {[%emt 0:03:08] Repels Ne3. White is weak on the light squares} 27. Qg3 {[%emt 0:01:55]} Qg7 {[%emt 0:04:58]} (27... g5 $19 28. R4f2 Kg7) 28. Ne3 $17 {[%emt 0:00:38]} Be2 {[%emt 0:11:52]} 29. R1f2 {[%emt 0:01:33]} Bd3 {[%emt 0:00:26]} 30. Rh4 $2 {[%emt 0:01:25][%mdl 8192] [#]} (30. Rd2 $17 Bb1 (30... Be4 $2 31. Qg5 $19) 31. Rd1) 30... Re4 $2 {[%emt 0:03:25]} (30... g5 $1 $19 {[%cal Rg5h4] has better winning chances.} 31. Rh5 f4 (31... Qxd4 32. Rxg5+ Kf7 33. Nxf5 Qa1+ 34. Kh2)) 31. Rff4 {[%emt 0:04:22]} (31. Rxe4 $17 Bxe4 32. Qd6) 31... Rae8 {[%emt 0:01:24]} (31... Qxd4 32. Rxe4 (32. Qxg6+ Qg7 $15) 32... Bxe4 33. Qxg6+ Kf8 34. Qd6+ Kg8 (34... Ke8 35. Rh7 Qxe3+ 36. Kh2) 35. Kh2 $18) (31... Rxf4 $19 32. Rxf4 Bb1) 32. Rxe4 $15 {[%emt 0:01:21]} Bxe4 {[%emt 0:00:04]} 33. Qg5 {[%emt 0:00:29] Repels Qf6} Kf7 {[%emt 0:02:05]} (33... Qxd4 $6 34. Qxg6+ Kf8 35. Rh7 Qxe3+ 36. Kh2 Qf4+ (36... Qxc5 37. Qg7#) 37. Kg1 Qe3+ 38. Kh2 Qf4+ (38... Qxc5 39. Qg7#) 39. Kg1 Qe3+ $11) 34. Qg3 $2 {[%emt 0:01:20]} (34. Rh3 $17) 34... g5 $1 $19 {[%emt 0:02:21]} (34... Qxd4 35. Rh7+ Kf6 36. Qd6+ Kg5 (36... Re6 37. Qd8+ Ke5 38. Qc7+ Kf6 39. Rf7+ Kg5 40. Qg3+ Kh6 41. Qh4#) 37. Qg3+ Kf6 38. Qd6+ Kg5 (38... Re6 39. Qd8+ Ke5 40. Qc7+ Kf6 41. Rf7+ Kg5 42. Qg3+ Kh6 43. Qh4#) 39. Qg3+ Kf6 $11) 35. Rh5 {[%emt 0:00:56]} (35. Rxe4 fxe4 36. Nf5) 35... f4 {[%emt 0:00:07]} (35... Qxd4 36. Qc7+ Re7 37. Rh7+ Kg6 38. Qxe7 $11) 36. Qg4 {[%emt 0:01:13]} fxe3 {[%emt 0:00:19]} 37. Rxg5 {[%emt 0:00:04]} Bg6 {[%emt 0:00:06] Weighted Error Value: White=0.93/Black=0.33.  Loses game:     	White=2     	---        Missed win:     	---       	Black=1      Mistake:       	White=7     	Black=3      Inaccurate:     	White=2     	Black=1      OK:         	White=9     	Black=12     Best:        	White=1     	Black=2      Strong:       	---       	Black=1} ({Not} 37... Qxd4 38. Qh5+ Kf6 39. Qh6+ Kf7 40. Qh5+ Kf8 41. Qh6+ Kf7 (41... Ke7 42. Rg7+ $14) 42. Qh5+ $11) (37... Qf6 $142 38. Qh5+ Bg6 39. Qxg6+ Qxg6 40. Rxg6 Kxg6 41. Kf1 Kf5 42. Ke2 Ke4 43. g4 Rf8 (43... Kxd4 {gets mated.} 44. g5 Kc3 45. g6 d4 46. g7 d3+ 47. Kf3 e2 48. Kg4 e1=Q 49. Kf5 d2 50. g8=Q Rxg8 51. Kf6 d1=Q 52. Kf7 Qe8+ 53. Kf6 Qf3#) 44. g5 Rf2+ (44... Kxd4 45. g6 Rf2+ 46. Ke1 Kd3 47. g7 Rg2 48. g8=Q Rxg8 49. Kf1 Kd2 50. b4 e2+ 51. Kf2 e1=Q+ 52. Kf3 Qg3#) 45. Ke1 Kd3 (45... Rxa2 46. g6 Kf3 47. Kd1 e2+ 48. Ke1 Ke3 49. g7 Ra1#) 46. b4 Rf3 (46... Rxa2 {leads to mate.} 47. Kf1 Rf2+ 48. Kg1 Ke4 49. b5 Kf3 50. bxc6 e2 51. cxb7 e1=Q#) 47. g6 e2 48. g7 Rf1#) 0-1

[Event "40th Cappelle Open 2024"]
[Site "Cappelle-la-Grande"]
[Date "2024.03.06"]
[Round "7.14"]
[White "Le Marec, Simon"]
[Black "Nikolov, Momchil"]
[Result "0-1"]
[ECO "E49"]
[WhiteElo "2188"]
[BlackElo "2453"]
[Annotator "TA"]
[PlyCount "76"]
[EventDate "2024.03.02"]
[EventType "swiss"]
[EventCountry "FRA"]
[SourceTitle "playchess.com"]
[Source "ChessBase"]
[SourceQuality "1"]
[TimeControl "40/5400+30:1800+30"]

{[%evp 19,76,-14,0,-17,0,-8,-6,-31,-7,-8,-10,-40,-53,-69,-66,-135,-145,-181,-77,-65,-64,-67,-66,-247,-209,-241,-174,-158,-173,-155,-76,-213,-211,-235,-234,-251,-259,-315,-313,-311,-245,-245,-254,-252,-234,-336,-307,-334,-335,-317,-304,-350,-360,-352,-327,-364,-377,-373,-368]} 1. d4 {[%emt 0:00:04]} Nf6 {[%emt 0:00:10]} 2. c4 {[%emt 0:00:07]} e6 {[%emt 0:00:07]} 3. Nc3 {[%emt 0:00:08]} Bb4 {[%emt 0:00:07]} 4. e3 {[%emt 0:00:06]} O-O {[%emt 0:00:09]} 5. Bd3 {[%emt 0:00:06]} d5 {[%emt 0:00:06]} 6. a3 {[%emt 0:00:05]} Bxc3+ {[%emt 0:00:08]} 7. bxc3 {[%emt 0:00:07]} dxc4 {[%emt 0:00:08]} 8. Bxc4 {[%emt 0:00:06]} c5 {[%emt 0:00:04]} 9. Ne2 {[%emt 0:00:08]} Qc7 {[%emt 0:00:14]} 10. Bd3 {[%emt 0:00:06]} Nc6 {[%emt 0:00:10]} 11. O-O {[%emt 0:00:41]} e5 {[%emt 0:00:22]} 12. Ng3 {[%emt 0:00:06]} Be6 {[%emt 0:00:25]} 13. f4 {[%emt 0:04:41] The position is equal.} exd4 {[%emt 0:00:21]} 14. cxd4 {[%emt 0:00:10]} Rad8 {[%emt 0:00:17]} 15. Bb2 {[%emt 0:32:56]} cxd4 {[%emt 0:02:31]} 16. e4 {[%emt 0:00:36]} Ng4 {[%emt 0:03:03] aiming for ...Ne3.} 17. f5 {[%emt 0:08:09]} (17. Rf3 $15) 17... Ne3 $1 $17 {[%emt 0:02:06][%csl LRd1,LRf1]} 18. Qh5 {[%emt 0:11:43]} Bc8 {[%emt 0:08:13]} (18... Nxf1 $19 {and Black stays clearly on top.} 19. Rxf1 Ne5) 19. f6 {[%emt 0:04:37]} Qe5 {[%emt 0:07:25] Against Qg5} ({And not} 19... Nxf1 20. Qg5 (20. fxg7 Nxg3 21. gxf8=Q+ Kxf8 $15) (20. fxg7 Nxg3 21. gxf8=Q+ Kxf8 $17)) 20. Qh4 {[%emt 0:04:45] [#] Strongly threatening Rf3.} Rd6 $1 {[%emt 0:10:45] The board is on fire. Black has more active pieces.} 21. Nh5 $2 {[%emt 0:00:54]} g5 $19 {[%emt 0:09:35]} 22. Qf2 {[%emt 0:03:07]} Ng4 {[%emt 0:04:21] Excellent horsemanship.} 23. Qg3 {[%emt 0:00:09]} Qxg3 $40 {[%emt 0:00:16][%mdl 128] Black is out for blood.} (23... Nxf6 $2 {loses.} 24. Rxf6 Rxf6 25. Qxe5 Nxe5 26. Nxf6+ Kg7 27. Nh5+ Kg6 28. Be2 $18) 24. Nxg3 {[%emt 0:01:49]} Rxf6 {[%emt 0:01:04]} (24... h6 $142 {[%cal Of8d8] Hoping for ...Rfd8!} 25. Rac1 Rfd8 (25... Rxf6 26. Rxf6 Nxf6 27. Bb5 $17) (25... Nxf6 26. h3 $17)) 25. Nf5 {[%emt 0:01:36]} (25. Rxf6 $17 Nxf6 26. Bb5) 25... Bxf5 {[%emt 0:02:41]} 26. exf5 {[%emt 0:00:11]} Rd6 {[%emt 0:02:25]} 27. Rfe1 {[%emt 0:04:31]} Nge5 {[%emt 0:02:09]} 28. Be4 {[%emt 0:01:16]} Nc4 {[%emt 0:02:11]} 29. Rab1 {[%emt 0:01:40]} Nd2 {[%emt 0:02:55]} 30. Rbd1 {[%emt 0:00:05]} Nxe4 {[%emt 0:00:20]} 31. Rxe4 {[%emt 0:00:05]} Rfd8 {[%emt 0:00:55]} 32. Rd3 {[%emt 0:00:22]} (32. h4 $142) 32... f6 {[%emt 0:00:45]} 33. h4 {[%emt 0:00:29]} h6 {[%emt 0:00:53]} 34. hxg5 {[%emt 0:01:20]} hxg5 {[%emt 0:00:21]} 35. Kf1 {[%emt 0:00:07]} Rd5 {[%emt 0:03:20]} 36. g4 {[%emt 0:00:51]} Re5 {[%emt 0:02:07]} 37. Re2 {[%emt 0:00:07]} Rxe2 {[%emt 0:03:02]} 38. Kxe2 {[%emt 0:00:05]} Re8+ {[%emt 0:00:11] Weighted Error Value: White=0.33/Black=0.19 (very precise) .  Loses game:     	White=1     	---        Mistake:       	White=3     	Black=2      Inaccurate:     	White=1     	---        OK:         	White=8     	Black=16     Best:        	White=1     	Black=1      Strong:       	---       	Black=1} 0-1

[Event "40th Cappelle Open 2024"]
[Site "Cappelle-la-Grande"]
[Date "2024.03.06"]
[Round "7.15"]
[White "Firat, Burak"]
[Black "Dalaud, Dorian"]
[Result "1-0"]
[ECO "C55"]
[WhiteElo "2439"]
[BlackElo "2319"]
[Annotator "TA"]
[PlyCount "65"]
[EventDate "2024.03.02"]
[EventType "swiss"]
[EventCountry "FRA"]
[SourceTitle "playchess.com"]
[Source "ChessBase"]
[SourceQuality "1"]
[TimeControl "40/5400+30:1800+30"]

{[%evp 9,65,13,43,18,26,11,22,1,-13,-8,0,0,8,0,0,-22,0,-20,-8,-10,0,0,0,0,0,20,0,0,31,12,34,29,64,64,73,73,160,136,225,235,238,217,383,351,385,322,459,424,464,441,621,569,1527,1365,29985,29986,29984,29985]} 1. e4 {[%emt 0:00:05]} e5 {[%emt 0:00:40]} 2. Nf3 {[%emt 0:00:14]} Nc6 {[%emt 0:00:09]} 3. Bc4 {[%emt 0:00:27]} Nf6 {[%emt 0:00:53]} 4. d3 {[%emt 0:00:09]} h6 {[%emt 0:00:15]} 5. a4 {[%emt 0:03:50]} d6 {[%emt 0:01:15]} 6. a5 {[%emt 0:02:15]} a6 {[%emt 0:14:19]} 7. Nc3 {[%emt 0:09:28]} Be6 {[%emt 0:04:37]} 8. Bxe6 {[%emt 0:05:02] The position is equal.} fxe6 {[%emt 0:00:11]} 9. d4 {[%emt 0:00:15]} exd4 {[%emt 0:00:08]} 10. Nxd4 {[%emt 0:00:06]} Qd7 {[%emt 0:00:04]} 11. O-O {[%emt 0:12:45]} O-O-O {[%emt 0:19:57]} 12. Re1 {[%emt 0:07:56]} d5 {[%emt 0:10:07]} 13. exd5 {[%emt 0:14:36]} exd5 {[%emt 0:02:46]} 14. Nce2 {[%emt 0:11:29]} Bc5 {[%emt 0:03:11]} 15. Nxc6 {[%emt 0:05:14]} Qxc6 {[%emt 0:01:30]} 16. Nd4 {[%emt 0:01:07]} Bxd4 {[%emt 0:02:47]} 17. Qxd4 {[%emt 0:03:04]} Rhe8 {[%emt 0:00:10][%cal Re8e1]} 18. Bf4 {[%emt 0:03:19]} Rxe1+ {[%emt 0:01:50]} 19. Rxe1 {[%emt 0:00:03]} Re8 {[%emt 0:00:06] Black is weak on the dark squares} 20. Rxe8+ {[%emt 0:03:27]} Qxe8 $14 {[%emt 0:00:19][%cal Re8e1][%mdl 4096] Endgame. KQB-KQN} 21. h3 {[%emt 0:00:12] White is more active.} Qe1+ {[%emt 0:10:59]} 22. Kh2 {[%emt 0:00:02][%cal Of4h6]} Qe4 {[%emt 0:00:08]} ({Black should play} 22... Qe7) 23. Qe5 $16 {[%emt 0:06:11][%csl Gf4][%cal Re5c7]} Qxc2 {[%emt 0:12:02] [#]} (23... Qxe5 $16 {was worth a try.} 24. Bxe5 Ne8) 24. Qe7 $1 $18 {[%emt 0:02:51]} Qc6 {[%emt 0:05:41]} 25. Qxg7 {[%emt 0:00:14]} Kb8 $2 {[%emt 0:03:08]} (25... b5 {is a better defense.} 26. Qxh6 (26. Bxh6 d4 $18) 26... Kb7) 26. Qh8+ {[%emt 0:01:49]} ({Don't do} 26. Bxh6 b6 27. Bg5 Ne4) 26... Ne8 {[%emt 0:00:22]} 27. Qxh6 {[%emt 0:02:25]} Qd7 {[%emt 0:01:02]} (27... Qxh6 $142 28. Bxh6 c5) 28. Qg6 {[%emt 0:01:50]} d4 {[%emt 0:00:45]} 29. h4 {[%emt 0:00:12][%cal Bh3h4,Bh4h5][%mdl 32]} d3 {[%emt 0:01:56]} (29... Ng7 $142 30. h5 Ne6) 30. h5 {[%emt 0:00:21]} d2 {[%emt 0:00:30] [#]} 31. Bxd2 {[%emt 0:00:11][%cal Oh5h6][%mdl 512] Hoping for h6!} Qxd2 {[%emt 0:00:03]} (31... b5 32. Bf4) 32. Qxe8+ {[%emt 0:00:09]} Ka7 {[%emt 0:00:01]} 33. Qe3+ {[%emt 0:00:11] Weighted Error Value: White=0.08 (flawless) /Black=0.67.  Mistake:       	---       	Black=5      Inaccurate:     	---       	Black=4      OK:         	White=8     	Black=6      Best:        	White=3     	---        Strong:       	White=1     	---} 1-0

[Event "40th Cappelle Open 2024"]
[Site "Cappelle-la-Grande"]
[Date "2024.03.06"]
[Round "7.16"]
[White "Tomaszewski, Kacper"]
[Black "Tarhan, Adar"]
[Result "0-1"]
[ECO "D38"]
[WhiteElo "2310"]
[BlackElo "2432"]
[Annotator "TA"]
[PlyCount "76"]
[EventDate "2024.03.02"]
[EventType "swiss"]
[EventCountry "FRA"]
[SourceTitle "playchess.com"]
[Source "ChessBase"]
[SourceQuality "1"]
[TimeControl "40/5400+30:1800+30"]

{[%evp 12,76,6,0,12,-16,0,-8,0,-31,-37,-30,-21,-10,0,-30,-27,-26,-29,-84,-80,-56,-58,-46,-42,-33,-27,-23,-14,-173,-167,-206,-204,-192,-195,-208,-206,-204,-209,-197,-196,-264,-150,-259,-200,-222,-202,-252,-253,-424,-416,-428,-407,-398,-402,-409,-404,-458,-456,-585,-588,-554,-459,-581,-614,-6029,-6091]} 1. d4 {[%emt 0:00:04]} Nf6 {[%emt 0:00:07]} 2. c4 {[%emt 0:00:06]} e6 {[%emt 0:00:10]} 3. Nc3 {[%emt 0:00:06]} d5 {[%emt 0:00:42]} 4. Nf3 {[%emt 0:00:23]} Bb4 {[%emt 0:00:23]} 5. Qa4+ {[%emt 0:00:12]} Nc6 {[%emt 0:00:05]} 6. a3 {[%emt 0:00:05]} Bxc3+ {[%emt 0:00:19]} 7. bxc3 {[%emt 0:00:06]} Ne4 {[%emt 0:00:43]} 8. Bf4 {[%emt 0:01:16]} Nxc3 {[%emt 0:01:57]} 9. Qc2 {[%emt 0:00:16]} Ne4 {[%emt 0:00:05] The position is equal.} 10. e3 {[%emt 0:00:07]} g5 $1 {[%emt 0:04:12]} 11. Bg3 {[%emt 0:04:05]} h5 {[%emt 0:05:12] Strongly threatening ...h4.} 12. Ne5 {[%emt 0:06:20]} Bd7 {[%emt 0:11:47]} 13. cxd5 {[%emt 0:52:55]} exd5 {[%emt 0:01:10] ...h4 is the strong threat.} 14. Nxd7 {[%emt 0:00:03]} Qxd7 {[%emt 0:00:10]} 15. Bb5 {[%emt 0:00:02]} (15. Bd3 $11 {remains equal.}) 15... Rh6 {[%emt 0:01:22]} 16. h4 {[%emt 0:03:08]} Nxg3 {[%emt 0:02:12]} 17. hxg5 {[%emt 0:00:23]} Re6 {[%emt 0:06:11]} 18. fxg3 {[%emt 0:00:04]} Rxe3+ {[%emt 0:02:34]} 19. Kf2 {[%emt 0:00:05]} Re4 $36 {[%emt 0:00:20][%mdl 2048] Black has the initiative.} (19... Re6 {simplifies} 20. Bxc6 Qxc6 21. Qxc6+ Rxc6 22. Rae1+ Kf8) 20. Rhe1 $2 {[%emt 0:00:11] This costs White the game.} (20. Rxh5 O-O-O 21. Kg1 Qg4 (21... Rxd4 22. Rf1 $11) 22. Bxc6 Qxh5) (20. Bxc6 $11 {and White stays safe.} bxc6 (20... Qxc6 21. Qxc6+ bxc6 22. Rxh5 $11) 21. Rxh5) 20... O-O-O $19 {[%emt 0:00:26] ...Qf5+ would now be deadly.} 21. Rxe4 {[%emt 0:00:15]} dxe4 {[%emt 0:00:20]} 22. Qxe4 {[%emt 0:00:33]} Qxd4+ {[%emt 0:00:16]} 23. Qxd4 {[%emt 0:00:06]} Nxd4 {[%emt 0:00:32][%mdl 4096] Endgame. KRB-KRN} (23... Rxd4 24. Be2 $15) 24. Bc4 {[%emt 0:00:16] [#]} Rg8 $1 {[%emt 0:00:06]} 25. Bxf7 {[%emt 0:15:10]} Rxg5 {[%emt 0:00:29] Hoping for ...Rf5+.} 26. Bc4 {[%emt 0:00:04]} (26. g4 $142) 26... Rf5+ {[%emt 0:01:29]} (26... b5 $19 27. Bd3 c5) 27. Kg1 {[%emt 0:00:16]} (27. Ke3 $17 c5 28. a4) 27... Rc5 {[%emt 0:00:11]} 28. Bd3 {[%emt 0:00:39]} Rc3 {[%emt 0:07:41]} 29. Rd1 {[%emt 0:00:56]} Rxa3 {[%emt 0:00:54]} 30. Bg6 $2 {[%emt 0:00:28]} (30. Be4 {was necessary.} c5 31. Kf2) 30... Rxg3 {[%emt 0:05:17]} 31. Bxh5 {[%emt 0:00:32]} c5 {[%emt 0:02:28]} 32. Kf2 {[%emt 0:02:02]} Rg8 {[%emt 0:00:11]} 33. g4 {[%emt 0:00:29]} a5 {[%emt 0:00:35]} ({Weaker is} 33... Rf8+ 34. Ke3 $17) 34. Rg1 {[%emt 0:00:38]} Rg5 {[%emt 0:01:35] Black is clearly winning.} ({Not} 34... Rf8+ 35. Ke3 $15) 35. Ke3 {[%emt 0:00:28]} Kd7 {[%emt 0:02:10]} 36. Bf7 {[%emt 0:00:43]} Ke7 {[%emt 0:00:30]} 37. Bc4 {[%emt 0:01:23]} b5 {[%emt 0:00:07]} 38. Kf4 {[%emt 0:00:21] [#]} bxc4 $1 {[%emt 0:00:26] Weighted Error Value: White=0.57/Black=0.10 (very precise) .  Mistake:       	White=5     	Black=1      Inaccurate:     	White=4     	---        OK:         	White=8     	Black=11     Best:        	White=3     	Black=3      Strong:       	---       	Black=2} 0-1

[Event "40th Cappelle Open 2024"]
[Site "Cappelle-la-Grande"]
[Date "2024.03.06"]
[Round "7.17"]
[White "Loiseau, Quentin"]
[Black "Fiedorek, Michal"]
[Result "1-0"]
[ECO "E06"]
[WhiteElo "2412"]
[BlackElo "2286"]
[Annotator "TA"]
[PlyCount "85"]
[EventDate "2024.03.02"]
[EventType "swiss"]
[EventCountry "FRA"]
[SourceTitle "playchess.com"]
[Source "ChessBase"]
[SourceQuality "1"]
[TimeControl "40/5400+30:1800+30"]

{[%evp 20,85,33,14,40,4,39,43,50,6,8,0,0,-8,0,0,0,-2,0,0,3,-6,1,0,0,0,0,-21,27,22,19,18,58,49,65,54,60,58,64,60,89,90,81,73,112,121,85,71,71,85,128,128,214,221,208,216,410,442,467,427,447,454,461,463,462,465,414,377]} 1. c4 {[%emt 0:00:30]} e6 {[%emt 0:00:06]} 2. d4 {[%emt 0:01:35]} d5 {[%emt 0:00:09]} 3. Nf3 {[%emt 0:00:05]} Nf6 {[%emt 0:00:07]} 4. g3 {[%emt 0:00:25]} Be7 {[%emt 0:01:00]} 5. Bg2 {[%emt 0:00:19]} O-O {[%emt 0:00:07]} 6. O-O {[%emt 0:00:02]} c6 {[%emt 0:00:07]} 7. Qc2 {[%emt 0:07:10]} dxc4 {[%emt 0:02:06]} 8. Qxc4 {[%emt 0:04:09]} b5 {[%emt 0:00:06]} 9. Qc2 {[%emt 0:00:39]} Bb7 {[%emt 0:00:23]} 10. Bg5 {[%emt 0:01:02]} Nbd7 {[%emt 0:01:45]} 11. Nc3 {[%emt 0:04:09]} Qb6 {[%emt 0:03:14]} 12. a4 {[%emt 0:01:12]} a6 {[%emt 0:06:47]} 13. Ne5 {[%emt 0:06:30] [#] Black must now prevent Nxd7.} Rfd8 {[%emt 0:27:58] White is slightly better.} 14. Ne4 {[%emt 0:10:54] next e3 is good for White.} Qxd4 {[%emt 0:03:15]} 15. Nxd7 {[%emt 0:01:38]} (15. Nxc6 {simplifies} Bxc6 16. Qxc6 bxa4 17. Qxa4 Qxa4 18. Rxa4 Rab8 19. Ra2) 15... Qxd7 {[%emt 0:01:35]} 16. Nc5 {[%emt 0:02:00]} Bxc5 {[%emt 0:01:32]} 17. Qxc5 {[%emt 0:01:30]} Qd4 {[%emt 0:05:28]} 18. Qc2 {[%emt 0:04:13]} (18. Qxd4 {simplifies} Rxd4 19. axb5 axb5 20. Rxa8+ Bxa8 21. Be3) 18... h6 {[%emt 0:06:38]} 19. Rfd1 {[%emt 0:02:31]} Qe5 {[%emt 0:00:16]} 20. Be3 {[%emt 0:03:58]} Qf5 {[%emt 0:04:01]} 21. Qc5 {[%emt 0:08:50]} Qxc5 {[%emt 0:06:32]} 22. Bxc5 {[%emt 0:01:03]} bxa4 {[%emt 0:00:20]} 23. Kf1 {[%emt 0:17:47]} a5 {[%emt 0:12:30]} (23... Rxd1+ $142 24. Rxd1 Nd5) 24. Rxd8+ $11 {[%emt 0:01:09]} Rxd8 {[%emt 0:00:05]} 25. Ke1 $1 {[%emt 0:00:03]} Ba6 {[%emt 0:03:52]} (25... Nd7 $2 26. Rd1 Ba6 27. Ba3 $18 (27. Bxc6 Rc8 $11)) 26. Rxa4 {[%emt 0:00:32]} Rb8 {[%emt 0:00:50]} 27. Rxa5 {[%emt 0:00:35]} (27. Bxc6 $2 Rc8 (27... Rxb2 28. Bf3 $11) 28. f3 Rxc6 $19) 27... Bc4 {[%emt 0:00:13]} 28. Bd4 {[%emt 0:01:33] This pair of bishops is nice.} ({Reject} 28. Bxc6 Rxb2 29. Bf3 e5 $11) 28... Nd5 {[%emt 0:01:07]} 29. f4 {[%emt 0:03:57]} Bb5 {[%emt 0:02:53]} 30. Ra7 {[%emt 0:02:37]} Rd8 {[%emt 0:03:14][%cal Od5f4]} 31. Be4 {[%emt 0:01:28]} Nf6 {[%emt 0:02:29]} 32. Bxf6 {[%emt 0:06:39]} gxf6 $16 {[%emt 0:00:05][%mdl 4096] Endgame. KRB-KRB} 33. Rc7 {[%emt 0:00:01][%cal Oe4f3]} Rd6 {[%emt 0:03:20]} 34. Bf3 {[%emt 0:00:06] White is more active.} f5 {[%emt 0:02:45]} 35. Bh5 {[%emt 0:00:04]} Rd4 {[%emt 0:00:25]} (35... f6 $16 36. Rf7 Bc4) 36. Bxf7+ $18 {[%emt 0:05:41]} Kf8 {[%emt 0:00:04] [#]} 37. b3 $1 {[%emt 0:00:03]} ({Resist} 37. Bxe6 $6 Re4 38. Bxf5 Rxe2+ 39. Kd1 Rxh2 $16) 37... Rb4 $2 {[%emt 0:00:45]} (37... e5 {was necessary.} 38. fxe5 Re4) 38. Bxe6 {[%emt 0:00:10]} Re4 {[%emt 0:00:04]} 39. Bc4 {[%emt 0:00:14]} ({Less strong is} 39. Bxf5 Rxe2+ 40. Kd1 Rxh2 $16) 39... Bxc4 {[%emt 0:00:14]} 40. bxc4 {[%emt 0:00:02]} Rxc4 {[%emt 0:00:06]} 41. Rh7 {[%emt 0:30:03]} Rc1+ {[%emt 0:30:57]} 42. Kd2 {[%emt 0:01:32]} Rh1 {[%emt 0:00:05]} 43. Rxh6 {[%emt 0:00:03] Weighted Error Value: White=0.07 (flawless) /Black=0.19 (very precise) .  Mistake:       	---       	Black=3      Inaccurate:     	White=2     	Black=5      OK:         	White=15    	Black=6      Best:        	White=4     	Black=2      Strong:       	White=1     	---} 1-0

[Event "40th Cappelle Open 2024"]
[Site "Cappelle-la-Grande"]
[Date "2024.03.06"]
[Round "7.18"]
[White "Wirig, Anthony"]
[Black "Mirimanian, Hayk"]
[Result "1/2-1/2"]
[ECO "E14"]
[WhiteElo "2462"]
[BlackElo "2283"]
[Annotator "TA"]
[PlyCount "44"]
[EventDate "2024.03.02"]
[EventType "swiss"]
[EventCountry "FRA"]
[SourceTitle "playchess.com"]
[Source "ChessBase"]
[SourceQuality "1"]
[TimeControl "40/5400+30:1800+30"]

{[%evp 19,44,0,10,0,12,5,6,0,12,3,0,-15,-12,-18,-11,-23,-6,-8,-6,-9,-12,-16,-12,-13,-6,-22,0]} 1. d4 {[%emt 0:05:57]} d5 {[%emt 0:00:34]} 2. Nf3 {[%emt 0:00:42]} Nf6 {[%emt 0:01:48]} 3. c4 {[%emt 0:00:53]} e6 {[%emt 0:04:04]} 4. e3 {[%emt 0:01:47]} Be7 {[%emt 0:10:10]} 5. Nc3 {[%emt 0:09:27]} b6 {[%emt 0:07:13]} 6. Bd3 {[%emt 0:13:32]} O-O {[%emt 0:10:39]} 7. O-O {[%emt 0:02:31]} dxc4 {[%emt 0:06:49]} 8. Bxc4 {[%emt 0:00:27]} Bb7 {[%emt 0:00:49]} 9. Qe2 {[%emt 0:02:00]} c5 {[%emt 0:04:01]} 10. dxc5 {[%emt 0:08:04]} Bxc5 {[%emt 0:01:14]} 11. a3 {[%emt 0:08:07]} Nbd7 {[%emt 0:03:02]} 12. Ba6 {[%emt 0:11:18]} Bxa6 {[%emt 0:04:49]} 13. Qxa6 {[%emt 0:00:53]} Qb8 {[%emt 0:00:24]} 14. Qe2 {[%emt 0:06:07]} Ne5 {[%emt 0:09:48]} 15. e4 {[%emt 0:01:09]} Nxf3+ {[%emt 0:00:49]} 16. Qxf3 {[%emt 0:00:02]} Bd6 {[%emt 0:00:10]} 17. g3 $1 {[%emt 0:01:39]} Be5 {[%emt 0:00:37]} 18. Bf4 {[%emt 0:00:22] The position is equal.} Bxf4 {[%emt 0:01:45]} 19. gxf4 {[%emt 0:00:02]} e5 {[%emt 0:04:54]} 20. fxe5 {[%emt 0:08:01]} Qxe5 {[%emt 0:00:06]} 21. Qg3 {[%emt 0:00:25]} Qe6 {[%emt 0:06:52]} 22. Rae1 {[%emt 0:00:29]} Rfe8 {[%emt 0:05:35] An uneventful encounter.   Weighted Error Value: White=0.05 (flawless) /Black=0.02 (flawless) .  OK:         	White=4     	Black=7      Strong:       	White=1     	---} 1/2-1/2